Cogmind - Beta 9.4 *** ADVENTURER MODE // 2020.08.07 @ 20:41:02 Player: Scyralis Result: Destroyed by G-34 Mercenary with Small Laser Performance ------------- Evolutions (1) 500 Regions Visited (2) 400 Robots Destroyed (64) 320 Value Destroyed (1087) 1087 Prototype IDs (0) 0 Alien Tech Used (0) 0 Bonus (0) 0 TOTAL SCORE: 2307 Bonus ------- None Cogmind --------- Core Integrity 0/400 Matter 290/300 Energy 235/265 System Corruption 0% Temperature Cool (6) Movement Walking (120) Location -9/Materials Parts ------- > --- POWER (1) -------- Improved Ion Engine > --- PROPULSION (2) --- Aluminum Leg Aluminum Leg > --- UTILITY (4) ------ Heat Sink Heat Sink Heat Sink Armor Integrity Analyzer > --- WEAPON (2) ------- Beam Rifle Heavy Particle Cannon > --- INVENTORY (4) ---- Light Armor Plating Peak State ------------ > --- POWER ------------ Ion Engine > --- PROPULSION ------- Aluminum Leg Aluminum Leg > --- UTILITY ---------- Cooling System Armor Integrity Analyzer Shield Generator > --- WEAPON ----------- Heavy Particle Cannon Heavy Particle Cannon > --- INVENTORY -------- (None) [Rating: 15] Favorites ----------- Power Ion Engine Engine Ion Engine Propulsion Aluminum Leg Leg Aluminum Leg Utility Armor Integrity Analyzer Device Shield Generator Processor Armor Integrity Analyzer Weapon EM Pulse Gun Energy Gun EM Pulse Gun Energy Cannon Heavy Particle Cannon Launcher EMP Blaster Build | -11 -10 -9 ------- Run | Scr Mat Mat Slots Evolved 2 | . . 2 Power . | . . . Propulsion . | . . . Utility 2 | . . 2 Weapon . | . . . Parts Attached 32 | 5 2 25 Power 6 | 1 1 4 Engine 6 | 1 1 4 Core . | . . . Reactor . | . . . Propulsion 9 | 2 . 7 Treads . | . . . Leg 9 | 2 . 7 Wheel . | . . . Hover . | . . . Flight . | . . . Utility 7 | . . 7 Device 6 | . . 6 Storage . | . . . Processor 1 | . . 1 Hackware . | . . . Protection . | . . . Artifact . | . . . Weapon 10 | 2 1 7 Energy Gun 5 | 2 1 2 Energy Cannon 4 | . . 4 Ballistic Gun . | . . . Ballistic Cannon . | . . . Launcher 1 | . . 1 Special Weapon . | . . . Impact Weapon . | . . . Slashing Weapon . | . . . Piercing Weapon . | . . . Special Melee Weapon . | . . . Unidentified Prototypes . | . . . Parts Lost 13 | . 1 12 Power 3 | . . 3 Propulsion 2 | . . 2 Utility 3 | . . 3 Weapon 5 | . 1 4 Highest Loss Streak 3 | . 1 3 Average Slot Usage (%) 74 | . 71 75 Engine 10 | . 14 9 Leg 21 | . 28 20 Device 16 | . . 19 Processor 7 | . . 9 Energy Gun 12 | . 28 8 Energy Cannon 3 | . . 4 Launcher 2 | . . 3 Naked Turns . | . . . Heaviest Build 21 | 7 9 21 Greatest Support 20 | 20 20 20 Greatest Overweight (x) 1 | . . 1 Average Overweight (x) . | . . . Largest Inventory Capacity 4 | 4 4 4 Average Capacity 4 | 4 4 4 Most Carried 4 | 4 2 3 Average Carried . | . . . Final Capacity 4 | 4 4 4 Final Carried 1 | . . 1 Class Distribution -------------------- 96% | Mutant 3% | Scavenger-Mutant Dominant Class ---------------- Mutant | -10/Materials Mutant | -9/Materials Resources | -11 -10 -9 ----------- Run | Scr Mat Mat Matter Collected 532 | 202 68 262 Remotely . | . . . Salvage Created 2126 | . 460 1666 Parts 141 | . 30 111 Haulers Intercepted 6 | . 2 4 Recyclers Shooed 2 | . . 2 Parts Field Recycled . | . . . Retrieved Matter . | . . . Parts Self-Destructed . | . . . Prevented . | . . . Kills | -11 -10 -9 ------- Run | Scr Mat Mat Combat Hostiles Destroyed 38 | . 9 29 Guns 14 | . 7 7 Cannons 16 | . . 16 AOE 7 | . 2 5 Classes Destroyed 10 | . 6 4 Worker 8 | . 2 6 Builder 5 | . . 5 Tunneler 2 | . 1 1 Hauler 6 | . 2 4 Recycler 2 | . 1 1 Operator 2 | . . 2 Watcher 1 | . . 1 Swarmer 19 | . 6 13 Grunt 16 | . 3 13 Sentry 3 | . . 3 Best Kill Streak 20 | . 7 20 Combat Bots Only 7 | . 5 7 Max Kills in Single Turn 3 | . 3 2 Gunslinging 1 | . 1 1 Exploded 1 | . 1 1 Melee . | . . . Uniques/NPCs Destroyed . | . . . Combat | -11 -10 -9 -------- Run | Scr Mat Mat Damage Taken 1418 | . 264 1154 Core 496 | . 90 406 Absorbed by Shields 190 | . . 190 Core Remaining (%) 82 | 100 64 . Volleys Fired 125 | 1 19 105 Largest 2 | 2 2 2 Hottest 150 | 80 80 150 Shots Fired 193 | 2 38 153 Gun 111 | 2 38 71 Cannon 64 | . . 64 Launcher 18 | . . 18 Special . | . . . Kinetic . | . . . Thermal 68 | . . 68 Explosive . | . . . Electromagnetic 125 | 2 38 85 Robot Hit Streak 15 | 2 13 15 Robot Miss Streak 3 | . 1 3 Penetration Max . | . . . Secondary Targets 3 | . 2 1 Max Gunslinging Chain 1 | . 1 1 Shots Hit Robots 149 | 2 31 116 Core Hits 76 | 1 17 58 Critical Hits . | . . . Critical Kills . | . . . Critical Parts Destroyed . | . . . Melee Attacks . | . . . Impact . | . . . Slashing . | . . . Piercing . | . . . Sneak Attacks . | . . . Combat Hostiles . | . . . Follow-up Attacks . | . . . Damage Inflicted 3495 | 26 698 2771 Guns 1089 | 26 382 681 Cannons 1351 | . . 1351 Explosions 1025 | . 316 709 Melee . | . . . Ramming 30 | . . 30 Kinetic . | . . . Thermal 1774 | . 316 1458 Explosive . | . . . Electromagnetic 1691 | 26 382 1283 Impact . | . . . Slashing . | . . . Piercing . | . . . Highest Corruption . | . . . Average Corruption . | . . . Corruption Purged . | . . . Overload Shots . | . . . Overflow Damage 74 | . 3 71 Projectiles 35 | . . 35 Explosions 36 | . 3 33 Melee 3 | . . 3 Knockbacks . | . . . Impact . | . . . Kinetic . | . . . Secondary . | . . . Self-Inflicted Damage 212 | . 45 167 Shots 11 | . 2 9 Rammed 11 | . . 11 Targets Rammed 14 | . . 14 Kicked 3 | . . 3 Crushed . | . . . Highest Temperature 610 | 18 210 610 Average Temperature 159 | 12 67 200 Received Heat Transfer 530 | . 60 470 Effects 15 | . . 15 Shutdowns 2 | . . 2 Energy Bleed 3 | . . 3 Matter Decay 1 | . . 1 Short Circuit 1 | . . 1 Damage (minor) 1 | . . 1 Damage (major) 5 | . . 5 Damage (core) 2 | . . 2 Siege Activations . | . . . Robots Corrupted 1 | . . 1 Combat Hostiles 1 | . . 1 Parts Fried 7 | . . 7 Impact Corruptions 1 | . . 1 Robots Melted . | . . . Combat Hostiles . | . . . Parts Melted 4 | . . 4 Heat Transferred 2411 | . 400 2011 Parts Sabotaged . | . . . Parts Stolen . | . . . Parts Stripped . | . . . Power Chain Reactions 7 | . 4 3 Missiles Intercepted . | . . . Alert | -11 -10 -9 ------- Run | Scr Mat Mat Peak Influence 387 | . 267 387 Average Influence 144 | . 109 155 Maximum Alert Level 1 | . 1 1 Low Security (%) 72 | 100 89 68 Level 1 27 | . 10 31 Level 2 . | . . . Level 3 . | . . . Level 4 . | . . . Level 5 . | . . . High Security . | . . . Max Security . | . . . Squads Dispatched 10 | . 1 9 Investigation 5 | . 1 4 Extermination . | . . . Reinforcement 5 | . . 5 Assault . | . . . Garrison . | . . . Intercept . | . . . Construction Impeded 2 | . . 2 Haulers Reinforced . | . . . Stealth | -11 -10 -9 --------- Run | Scr Mat Mat Distress Signals 2 | . . 2 Communications Jammed . | . . . Distress Signals . | . . . Times Spotted 64 | . 9 55 Peak Tracking Total 5 | . 5 5 Tactical Retreats 8 | . . 8 Traps | -11 -10 -9 ------- Run | Scr Mat Mat Traps Triggered . | . . . Indirectly . | . . . Trap Hack Attempts . | . . . Triggered . | . . . Disarmed . | . . . Reprogrammed . | . . . Reused . | . . . Traps Extracted . | . . . Installed . | . . . Triggered 1 | . . 1 Machines | -11 -10 -9 ---------- Run | Scr Mat Mat Machines Disabled 6 | . . 6 Max in Single Turn 2 | . . 2 Machines Sabotaged . | . . . Garrisons Compromised . | . . . Overloaded Fab Kills . | . . . Fab Network Shutdowns . | . . . Hacking | -11 -10 -9 --------- Run | Scr Mat Mat Machines Accessed 9 | . 3 6 Terminals 6 | . 3 3 Fabricators . | . . . Repair Stations . | . . . Recycling Units 2 | . . 2 Scanalyzers 1 | . . 1 Garrison Access . | . . . Total Hacks 28 | . 11 17 Successful 13 | . 6 7 Failed 15 | . 5 10 Catastrophic 4 | . 1 3 Database Lockouts . | . . . Manual 22 | . 10 12 Terminals 25 | . 11 14 Fabricators . | . . . Repair Stations . | . . . Recycling Units 2 | . . 2 Scanalyzers 1 | . . 1 Garrison Access . | . . . Terminal Hacks 10 | . 6 4 Robot Schematic 1 | . 1 . Robot Analysis 5 | . 4 1 Level Access Points 1 | . 1 . Unreport Threat 2 | . . 2 Locate Traps 1 | . . 1 Fabricator Hacks . | . . . Repair Station Hacks . | . . . Recycling Unit Hacks 2 | . . 2 Retrieve Components 2 | . . 2 Scanalyzer . | . . . Garrison Access Hacks . | . . . Unauthorized Hacks 3 | . . 3 Terminals . | . . . Fabricators . | . . . Repair Stations . | . . . Recycling Units . | . . . Scanalyzers 1 | . . 1 Extract 1 | . . 1 Garrison Access . | . . . Data Cores Recovered . | . . . Used . | . . . Hacking Detections 7 | . 3 4 Full Trace Events 4 | . 2 2 Feedback Events . | . . . Feedback Blocked . | . . . Robot Schematics Acquired 1 | . 1 . Robots Built . | . . . Matter . | . . . Time . | . . . Total Robot Build Rating . | . . . Part Schematics Acquired 1 | . . 1 Parts Built . | . . . Matter . | . . . Time . | . . . Total Part Build Rating . | . . . Parts Repaired . | . . . Time . | . . . Parts Recycled . | . . . Recycled Matter . | . . . Retrieved Matter . | . . . Retrieved Components 20 | . . 20 Parts Scanalyzed . | . . . Part Schematics Acquired . | . . . Parts Damaged . | . . . Bothacking | -11 -10 -9 ------------ Run | Scr Mat Mat Used RIF Installer . | . . . Robots Hacked . | . . . Non-combat . | . . . Combat . | . . . Robot Hacks Applied . | . . . Relay Couplers Released . | . . . Robots Rewired 1 | . . 1 Allies Hacked . | . . . Hacks Repelled . | . . . Allies | -11 -10 -9 -------- Run | Scr Mat Mat Total Allies 1 | . . 1 Largest Group 1 | . . 1 Highest-Rated Group 10 | . . 10 Highest-Rated Ally 10 | . . 10 Total Orders . | . . . Ally Attacks . | . . . Total Damage . | . . . Kills . | . . . Allies Corrupted . | . . . Allies Melted . | . . . Intel | -11 -10 -9 ------- Run | Scr Mat Mat Robot Analysis Total 5 | . 4 1 Derelict Logs Recovered . | . . . Drone Launches . | . . . Drone Recoveries . | . . . Exploration | -11 -10 -9 ------------- Run | Scr Mat Mat Turns Passed 1685 | 39 294 1352 Spaces Moved 1013 | 31 193 789 Core 15 | 15 . . Treads . | . . . Legs 998 | 16 193 789 Wheels . | . . . Hover . | . . . Flight . | . . . Fastest Speed 50 | 50 120 120 Average Speed 122 | 86 120 124 Slowest Speed 150 | 120 120 150 Overloaded Moves . | . . . Propulsion Burnouts . | . . . Robots Hopped . | . . . Cave-ins Triggered . | . . . Exploration Rate (%) 29 | 3 38 47 Regions Visited 2 Branch Regions . Pre-discovered Areas . | . . . Known Exits Taken 1 | . 1 . Unknown Exits Taken 1 | 1 . . Scrap Searched . | . . . Spaces Dug . | . . . Terrain Destroyed 37 | . 13 24 Melee . | . . . Projectile 9 | . . 9 AOE 28 | . 13 15 Actions | -11 -10 -9 --------- Run | Scr Mat Mat Total 1264 | 41 218 1005 Wait 25 | . . 25 Move 1011 | 30 192 789 Hop . | . . . Pick Up 35 | 5 3 27 Fast Attach . | . . . Attach 25 | 5 1 19 Detach . | . . . Swap 7 | . 1 6 Drop 12 | . 2 10 Fire 125 | 1 19 105 Melee . | . . . Ram . | . . . Kick 14 | . . 14 Crush . | . . . Escape Stasis . | . . . Rewire 10 | . . 10 Trap . | . . . Miscellaneous . | . . . Route ------- -11/Scrapyard -10/Materials (discovered 4 exits: *Mat x3 / [*Min]) -9/Materials (discovered 2 exits: [*Mat] / [*Min]) History --------- Turn | Location | Event 8 | -11/Scrapyard | Discovered new exit (range 15) 40 | -11/Scrapyard | Entered Materials 121 | -10/Materials | Identified exit to Materials 143 | -10/Materials | Discovered new exit (range 15) 314 | -10/Materials | Build established: Mutant 334 | -10/Materials | Entered another Materials area 334 | -9/Materials | Evolved 2 slots: Utility x2 709 | -9/Materials | Discovered new exit (range 15) 869 | -9/Materials | Lost 3 parts (1u2w) 1281 | -9/Materials | Core integrity fell below 50% 1370 | -9/Materials | Lost 3 parts (2p1u) 1604 | -9/Materials | Core integrity fell below 20% 1622 | -9/Materials | Destroyed 7 combat bots 1676 | -9/Materials | Discovered new exit (range 12) 1686 | -9/Materials | Destroyed by G-34 Mercenary with Small Laser Last Messages --------------- 01620_ U-05 Engineer destroyed. 01622_ U-05 Engineer builds a Wall. 01626_ Dropped Broken Hvy. Particle Cannon. 01626_ Acquired 40 matter. 01628_ U-05 Engineer builds a Wall. 01629_ Acquired Aluminum Leg. 01631_ Dropped Aluminum Leg. 01632_ Dropped Lgt. Ion Engine. 01633_ Acquired Lgt. Armor Plating. 01634_ Acquired 10 matter. 01636_ ALERT: Construction progress impeded, dispatching reinforcements to local area. 01636_ U-05 Engineer builds a Wall. 01638_ U-05 Engineer destroyed. 01640_ S-10 Pest destroyed. 01642_ U-05 Engineer destroyed. 01646_ Acquired Beam Rifle. 01671_ K-01 Serf destroyed. 01676_ EXIT=FOUND 01679_ G-34 Mercenary destroyed. Map ----- +----------------------------------------------------+ | | | | | | | | | | | | | | | | | | | | | | | | | | | | | | | | | | | | | | | | | ?????????????????????????????????????????????????? | | ?????????????????????????????????????????????????? | | ?????????????????????????????????????????????????? | | ????????????############################?????????? | | ????????????# ????????? | | ????????????# < [ @ ????????? | | ????????????# tg%= ????????? | | ???###############+###### ###########+???????????? | | ???# !! #??????????# #??????????????????????? | | ???# !! #??????????#=#??????????????????????? | | ???# ! #??????????#%#??????????????????????? | | ???# #??????????# #??????????????????????? | | #######+####+#??????????# #??????????????????????? | | # #??# #??????????# #??????????????????????? | | # #??# #??????????# #??????????????????????? | | """ # #### #??????????# #??????????????????????? | | """ + #??????????# #??????????????????????? | | """ # #??????????# #??????????????????????? | | # #??????????# #??????????????????????? | | ####### #??????????# #??????????????????????? | | ??????# #??????????# #????????????????####### | | #######+## #??????????# #???????????????? | | # # #??????????# #????????????????? """ " | | #""" # #??????????# #????????????????? """ " | | #""" # #?????????##!###????????????????""" ? | | #""" # #?#####??###*###???????????????? ? | | # + #?# ?#*[%=%#???????###????####+## | | #""" # #?#= #!%=%[#########=%#######%= | | #""" # #?# +=*%! %== %!*%[%=% = %% %% | | #""" # #?# #%=]% ##################%= | +----------------------------------------------------+ Best States ------------- Heat Dissipation 58 Energy Generation 12 Energy Capacity 265 Matter Stores 300 Matter Capacity 300 Sight Range 16 Terrain Scan Density 10 Resistance: KI 20 Resistance: TH 20 Resistance: EX 20 Resistance: EM 20 Resistance: I 20 Resistance: S 20 Resistance: P 20 Evasion (%) 50 Armor Integrity Analysis 33 Offensive Hacking 10 Item Schematics ----------------- Med. Armor Plating | -9/Materials | Extracted Robot Schematics ------------------ G-34 Mercenary | -10/Materials | Hacked Fabricated ------------ Nothing Alien Tech Used ----------------- None Achievements -------------- None Challenges ------------ None Game ------ Seed ShadingLayeredNanovents Manual? 0 Play Time 00:22:57 Cumulative 241.9 hours Start 2020.08.07 @ 20:26:25 End 2020.08.07 @ 20:41:02 Sessions 1 Manual Loads 0 Difficulty Adventurer Special Mode None Game No. 102 Rogue 1 Adventurer 101 Explorer 0 Win Type - Total 1 Types 1/0/0/0/0/0/0 Lore% 33 Gallery% 59 Achievement% 44 Wizard Run 0 Options --------- ASCII 0 Keyboard 0 Movement Numpad Keybinds 0 Fullscreen 0 Font 12/Smallcaps Map View 83x54 Tactical HUD 1 Map Filters NONE Filters NONE Steam X RUN: 9cb2debf-2290-4164-806c-13f7a50a6887